[Event "Late-Titled-Tuesday-Blitz-January-16-2024"]
[Site "Chess.com"]
[Date "2024.01.16"]
[Round "4"]
[White "Gryffindorac8"]
[Black "Bryanl106"]
[Result "0-1"]
[WhiteElo "2375"]
[BlackElo "2590"]
[TimeControl "180+1"]
[EndTime "14:38:11 PST"]
[Termination "Bryanl106 won by resignation"]

1. d4 {[%clk 0:03:00.9]} 1... Nf6 {[%clk 0:03:00.1]} 2. c4 {[%clk 0:03:00.8]}
2... g6 {[%clk 0:03:00.4]} 3. Nc3 {[%clk 0:03:00.1]} 3... c5 {[%clk 0:03:00.8]}
4. d5 {[%clk 0:02:59.6]} 4... Bg7 {[%clk 0:03:00.3]} 5. e4 {[%clk 0:02:59.4]}
5... d6 {[%clk 0:03:00.9]} 6. Nf3 {[%clk 0:02:56.5]} 6... O-O {[%clk 0:03:00.8]}
7. h3 {[%clk 0:02:54.2]} 7... e6 {[%clk 0:02:59.3]} 8. Be3 {[%clk 0:02:53.6]}
8... Na6 {[%clk 0:02:57.3]} 9. Be2 {[%clk 0:02:48.6]} 9... Nc7 {[%clk
0:02:57.1]} 10. a4 {[%clk 0:02:47.9]} 10... Na6 {[%clk 0:02:55.9]} 11. O-O
{[%clk 0:02:45.7]} 11... e5 {[%clk 0:02:54.1]} 12. Ne1 {[%clk 0:02:40]} 12...
Nb4 {[%clk 0:02:46.1]} 13. Nd3 {[%clk 0:02:38.6]} 13... a5 {[%clk 0:02:45.6]}
14. f4 {[%clk 0:02:22.7]} 14... exf4 {[%clk 0:02:43.2]} 15. Bxf4 {[%clk
0:02:20.5]} 15... Re8 {[%clk 0:02:38.8]} 16. Bf3 {[%clk 0:02:19]} 16... b6
{[%clk 0:02:22]} 17. Qd2 {[%clk 0:02:15.5]} 17... Ba6 {[%clk 0:02:11]} 18. b3
{[%clk 0:02:14.1]} 18... Ra7 {[%clk 0:02:01.8]} 19. Rae1 {[%clk 0:02:11.8]}
19... Nxd3 {[%clk 0:01:49.8]} 20. Qxd3 {[%clk 0:02:11.2]} 20... Rae7 {[%clk
0:01:50.7]} 21. Bg5 {[%clk 0:02:04.6]} 21... h6 {[%clk 0:01:47.3]} 22. Bh4
{[%clk 0:02:01.1]} 22... Qc7 {[%clk 0:01:45.5]} 23. Bd1 {[%clk 0:01:55.8]} 23...
Nd7 {[%clk 0:01:45.3]} 24. Bxe7 {[%clk 0:01:51.6]} 24... Rxe7 {[%clk 0:01:46.2]}
25. Ne2 {[%clk 0:01:35]} 25... Ne5 {[%clk 0:01:44.2]} 26. Qg3 {[%clk 0:01:33.8]}
26... Qd8 {[%clk 0:01:37.8]} 27. Bc2 {[%clk 0:01:33]} 27... Qe8 {[%clk
0:01:37.5]} 28. Kh1 {[%clk 0:01:22.4]} 28... Bc8 {[%clk 0:01:36.2]} 29. Ng1
{[%clk 0:01:21.8]} 29... Bd7 {[%clk 0:01:08.1]} 30. Nf3 {[%clk 0:01:17.7]} 30...
Nxf3 {[%clk 0:01:08.5]} 31. gxf3 {[%clk 0:01:15.6]} 31... Qc8 {[%clk 0:00:59.9]}
32. Kg2 {[%clk 0:01:11]} 32... Qd8 {[%clk 0:00:53.6]} 33. f4 {[%clk 0:01:09.6]}
33... Qe8 {[%clk 0:00:51.3]} 34. e5 {[%clk 0:01:07.3]} 34... dxe5 {[%clk
0:00:50]} 35. f5 {[%clk 0:01:07]} 35... Bxf5 {[%clk 0:00:23.5]} 36. Bxf5 {[%clk
0:01:07.9]} 36... gxf5 {[%clk 0:00:24.3]} 37. Rxf5 {[%clk 0:01:07.2]} 37... e4
{[%clk 0:00:25.2]} 38. Rf4 {[%clk 0:01:01.4]} 38... Kh8 {[%clk 0:00:22.5]} 39.
Rg4 {[%clk 0:00:47.5]} 39... f5 {[%clk 0:00:21]} 40. Rg6 {[%clk 0:00:43.8]}
40... Kh7 {[%clk 0:00:20.6]} 41. Rxb6 {[%clk 0:00:41.2]} 41... Be5 {[%clk
0:00:20.6]} 42. Qf2 {[%clk 0:00:37.5]} 42... Rg7+ {[%clk 0:00:19.8]} 43. Kh1
{[%clk 0:00:37.6]} 43... Qh5 {[%clk 0:00:19.8]} 44. Qe3 {[%clk 0:00:26.1]} 44...
Bg3 {[%clk 0:00:16.2]} 45. Qxh6+ {[%clk 0:00:05]} 45... Qxh6 {[%clk 0:00:17.1]}
46. Rxh6+ {[%clk 0:00:04.8]} 46... Kxh6 {[%clk 0:00:18]} 47. Rf1 {[%clk
0:00:05.3]} 47... f4 {[%clk 0:00:18]} 48. Kg2 {[%clk 0:00:05.1]} 48... f3+
{[%clk 0:00:17.5]} 49. Kh1 {[%clk 0:00:05]} 49... Bh4 {[%clk 0:00:16.2]} 50. Rd1
{[%clk 0:00:04]} 50... e3 {[%clk 0:00:16.1]} 0-1

[Event "Late-Titled-Tuesday-Blitz-January-16-2024"]
[Site "Chess.com"]
[Date "2024.01.16"]
[Round "4"]
[White "Statham_01"]
[Black "Sacbutt"]
[Result "1-0"]
[WhiteElo "2545"]
[BlackElo "2352"]
[TimeControl "180+1"]
[EndTime "14:38:16 PST"]
[Termination "Statham_01 won by checkmate"]

1. e4 {[%clk 0:03:00.9]} 1... c5 {[%clk 0:02:57.6]} 2. Nf3 {[%clk 0:03:00.1]}
2... d6 {[%clk 0:02:57.4]} 3. d4 {[%clk 0:03:00.7]} 3... cxd4 {[%clk 0:02:58.3]}
4. Nxd4 {[%clk 0:03:01.6]} 4... Nf6 {[%clk 0:02:58.6]} 5. Nc3 {[%clk 0:03:02.3]}
5... a6 {[%clk 0:02:59.3]} 6. a3 {[%clk 0:03:03]} 6... e5 {[%clk 0:02:59.1]} 7.
Nf5 {[%clk 0:03:03.5]} 7... Bxf5 {[%clk 0:02:58.5]} 8. exf5 {[%clk 0:03:03.9]}
8... d5 {[%clk 0:02:59.3]} 9. Bg5 {[%clk 0:03:04.1]} 9... d4 {[%clk 0:02:58.9]}
10. Bxf6 {[%clk 0:03:02.6]} 10... Qxf6 {[%clk 0:02:58.4]} 11. Nd5 {[%clk
0:03:03.1]} 11... Qd8 {[%clk 0:02:58.5]} 12. Bc4 {[%clk 0:03:00.2]} 12... Be7
{[%clk 0:02:36.7]} 13. O-O {[%clk 0:02:59.5]} 13... Nd7 {[%clk 0:02:33]} 14. Qh5
{[%clk 0:02:48.3]} 14... O-O {[%clk 0:02:27.9]} 15. Rae1 {[%clk 0:02:45.7]}
15... Nf6 {[%clk 0:02:24.6]} 16. Nxf6+ {[%clk 0:02:45.3]} 16... Bxf6 {[%clk
0:02:25.5]} 17. f4 {[%clk 0:02:37.9]} 17... exf4 {[%clk 0:02:16.4]} 18. Bb3
{[%clk 0:02:10.9]} 18... Qd6 {[%clk 0:02:08.8]} 19. Rf3 {[%clk 0:01:45.1]} 19...
h6 {[%clk 0:01:42.7]} 20. Re4 {[%clk 0:01:25.9]} 20... Be5 {[%clk 0:01:23.8]}
21. h4 {[%clk 0:00:49.7]} 21... Qf6 {[%clk 0:01:14.6]} 22. Qg6 {[%clk
0:00:36.9]} 22... Rae8 {[%clk 0:01:02.6]} 23. h5 {[%clk 0:00:19.2]} 23... Kh8
{[%clk 0:00:51.1]} 24. Qxf6 {[%clk 0:00:09]} 24... gxf6 {[%clk 0:00:38.1]} 25.
a4 {[%clk 0:00:09.5]} 25... a5 {[%clk 0:00:29.7]} 26. Kf1 {[%clk 0:00:10]} 26...
b6 {[%clk 0:00:29.3]} 27. Ke2 {[%clk 0:00:04.3]} 27... Rc8 {[%clk 0:00:29.8]}
28. Kd3 {[%clk 0:00:04.6]} 28... Rg8 {[%clk 0:00:30]} 29. Re2 {[%clk 0:00:03.5]}
29... Rg5 {[%clk 0:00:29]} 30. Bxf7 {[%clk 0:00:03.5]} 30... Rf8 {[%clk
0:00:23.6]} 31. Bg6 {[%clk 0:00:04]} 31... Kg7 {[%clk 0:00:22.5]} 32. Ke4 {[%clk
0:00:04.4]} 32... Rc8 {[%clk 0:00:22.1]} 33. Kd5 {[%clk 0:00:04.6]} 33... Rc5+
{[%clk 0:00:22]} 34. Ke6 {[%clk 0:00:04.4]} 34... Rc6+ {[%clk 0:00:21]} 35. Kd7
{[%clk 0:00:04.7]} 35... Rc7+ {[%clk 0:00:21]} 36. Kd8 {[%clk 0:00:05.1]} 36...
Rc4 {[%clk 0:00:19.1]} 37. c3 {[%clk 0:00:04.3]} 37... dxc3 {[%clk 0:00:18.3]}
38. bxc3 {[%clk 0:00:04.7]} 38... Rxa4 {[%clk 0:00:17.9]} 39. Rd3 {[%clk
0:00:04.5]} 39... Rg3 {[%clk 0:00:15]} 40. Rd7+ {[%clk 0:00:04.8]} 40... Kg8
{[%clk 0:00:15.3]} 41. Rxe5 {[%clk 0:00:03.7]} 41... fxe5 {[%clk 0:00:15]} 42.
f6 {[%clk 0:00:04.6]} 42... Kf8 {[%clk 0:00:11.2]} 43. Rf7+ {[%clk 0:00:04.4]}
43... Kg8 {[%clk 0:00:11.3]} 44. Rg7+ {[%clk 0:00:05.3]} 44... Kf8 {[%clk
0:00:11.9]} 45. Rh7 {[%clk 0:00:04.3]} 45... Kg8 {[%clk 0:00:11.5]} 46. f7+
{[%clk 0:00:04.3]} 46... Kf8 {[%clk 0:00:11.9]} 47. Rh8+ {[%clk 0:00:04.9]}
47... Kg7 {[%clk 0:00:11.9]} 48. f8=Q# {[%clk 0:00:05.8]} 1-0

[Event "Late-Titled-Tuesday-Blitz-January-16-2024"]
[Site "Chess.com"]
[Date "2024.01.16"]
[Round "4"]
[White "argentum049"]
[Black "Too_Stupid_To_Play"]
[Result "0-1"]
[WhiteElo "2488"]
[BlackElo "2317"]
[TimeControl "180+1"]
[EndTime "14:38:16 PST"]
[Termination "Too_Stupid_To_Play won on time"]

1. e4 {[%clk 0:03:00.9]} 1... c6 {[%clk 0:02:59.7]} 2. d4 {[%clk 0:03:00.4]}
2... d5 {[%clk 0:03:00.6]} 3. e5 {[%clk 0:03:01.3]} 3... Bf5 {[%clk 0:03:00.3]}
4. h4 {[%clk 0:03:01.1]} 4... h5 {[%clk 0:02:59.9]} 5. c4 {[%clk 0:03:01.5]}
5... e6 {[%clk 0:02:59.9]} 6. Nc3 {[%clk 0:03:02]} 6... Ne7 {[%clk 0:02:59]} 7.
Nge2 {[%clk 0:03:02.2]} 7... dxc4 {[%clk 0:02:56.1]} 8. Ng3 {[%clk 0:03:02.4]}
8... Bd3 {[%clk 0:02:54.5]} 9. Bxd3 {[%clk 0:03:02.2]} 9... cxd3 {[%clk
0:02:55.4]} 10. Qxd3 {[%clk 0:03:02.7]} 10... Nd5 {[%clk 0:02:52.1]} 11. Nge4
{[%clk 0:03:01.1]} 11... Nd7 {[%clk 0:02:49.4]} 12. a3 {[%clk 0:02:48.2]} 12...
Nxc3 {[%clk 0:02:47.2]} 13. Qxc3 {[%clk 0:02:46.5]} 13... Rc8 {[%clk 0:02:40.7]}
14. Bg5 {[%clk 0:02:45.1]} 14... Qb6 {[%clk 0:02:39.8]} 15. O-O {[%clk
0:02:44.7]} 15... Qb5 {[%clk 0:01:51.1]} 16. Rac1 {[%clk 0:02:22.3]} 16... Nb6
{[%clk 0:01:44.8]} 17. Qd2 {[%clk 0:02:04.3]} 17... Nc4 {[%clk 0:01:27]} 18. Qd3
{[%clk 0:01:23.6]} 18... Nxa3 {[%clk 0:01:26.1]} 19. Qc3 {[%clk 0:01:23.8]}
19... Qd5 {[%clk 0:01:03.5]} 20. bxa3 {[%clk 0:01:11.9]} 20... Qxe4 {[%clk
0:01:02.8]} 21. Qa5 {[%clk 0:00:54.5]} 21... Qxd4 {[%clk 0:00:55.9]} 22. Rb1
{[%clk 0:00:49.2]} 22... Bc5 {[%clk 0:00:35.9]} 23. Rxb7 {[%clk 0:00:19.7]}
23... Bb6 {[%clk 0:00:26.8]} 24. Qa6 {[%clk 0:00:13.9]} 24... O-O {[%clk
0:00:17.3]} 25. Be7 {[%clk 0:00:13.7]} 25... Rfe8 {[%clk 0:00:15.9]} 26. Bd6
{[%clk 0:00:14.4]} 26... Qxh4 {[%clk 0:00:11.3]} 27. a4 {[%clk 0:00:12.3]} 27...
Qe4 {[%clk 0:00:05.5]} 28. a5 {[%clk 0:00:12.3]} 28... Bd4 {[%clk 0:00:05.9]}
29. Rc1 {[%clk 0:00:08.4]} 29... Bxe5 {[%clk 0:00:05.6]} 30. Bxe5 {[%clk
0:00:05.4]} 30... Qxe5 {[%clk 0:00:06.5]} 31. Qxa7 {[%clk 0:00:05.7]} 31... Rf8
{[%clk 0:00:04.6]} 32. a6 {[%clk 0:00:04.6]} 32... Ra8 {[%clk 0:00:03.4]} 33.
Qb6 {[%clk 0:00:05]} 33... Qf4 {[%clk 0:00:01.9]} 34. Ra1 {[%clk 0:00:04.8]}
34... h4 {[%clk 0:00:01.9]} 35. a7 {[%clk 0:00:04.3]} 35... h3 {[%clk
0:00:02.4]} 36. Rb8 {[%clk 0:00:01.3]} 36... hxg2 {[%clk 0:00:01.8]} 37. Rxa8
{[%clk 0:00:01]} 37... Rxa8 {[%clk 0:00:02.3]} 38. Qb7 {[%clk 0:00:00.9]} 38...
Rf8 {[%clk 0:00:02.1]} 39. a8=Q {[%clk 0:00:01.1]} 39... Qh4 {[%clk 0:00:02.1]}
0-1

[Event "Late-Titled-Tuesday-Blitz-January-16-2024"]
[Site "Chess.com"]
[Date "2024.01.16"]
[Round "4"]
[White "The_Machine04"]
[Black "jcibarra"]
[Result "0-1"]
[WhiteElo "2704"]
[BlackElo "2890"]
[TimeControl "180+1"]
[EndTime "14:38:17 PST"]
[Termination "jcibarra won by checkmate"]

1. d4 {[%clk 0:03:00.9]} 1... Nf6 {[%clk 0:02:59.9]} 2. Nf3 {[%clk 0:03:01.5]}
2... d5 {[%clk 0:02:56.8]} 3. e3 {[%clk 0:02:59.8]} 3... c5 {[%clk 0:02:56.5]}
4. Nbd2 {[%clk 0:02:56.2]} 4... cxd4 {[%clk 0:02:53.3]} 5. exd4 {[%clk
0:02:55.7]} 5... Nc6 {[%clk 0:02:54]} 6. c3 {[%clk 0:02:55.7]} 6... Bf5 {[%clk
0:02:48.2]} 7. Bb5 {[%clk 0:02:54.5]} 7... e6 {[%clk 0:02:41.5]} 8. Qa4 {[%clk
0:02:49.6]} 8... Qb6 {[%clk 0:02:40.7]} 9. Ne5 {[%clk 0:02:49.2]} 9... Rc8
{[%clk 0:02:39.2]} 10. O-O {[%clk 0:02:46.2]} 10... Bd6 {[%clk 0:02:30.7]} 11.
Ndf3 {[%clk 0:02:43.5]} 11... O-O {[%clk 0:02:27.8]} 12. Bg5 {[%clk 0:02:42.2]}
12... Bxe5 {[%clk 0:02:00.4]} 13. dxe5 {[%clk 0:02:26.3]} 13... Nd7 {[%clk
0:01:41.2]} 14. Rfe1 {[%clk 0:02:15.8]} 14... Nc5 {[%clk 0:01:36.3]} 15. Bxc6
{[%clk 0:01:10.4]} 15... Nxa4 {[%clk 0:01:36]} 16. Bxa4 {[%clk 0:01:11.3]} 16...
Qxb2 {[%clk 0:01:32.9]} 17. Be7 {[%clk 0:01:08.5]} 17... Qxc3 {[%clk 0:01:21.2]}
18. h3 {[%clk 0:00:52.9]} 18... Be4 {[%clk 0:01:13.3]} 19. Ng5 {[%clk
0:00:43.3]} 19... Qxe5 {[%clk 0:01:06.6]} 20. Nxe4 {[%clk 0:00:25.7]} 20... dxe4
{[%clk 0:01:05.6]} 21. Rab1 {[%clk 0:00:17.4]} 21... Rc7 {[%clk 0:00:55.7]} 22.
Bxf8 {[%clk 0:00:16.3]} 22... Kxf8 {[%clk 0:00:55.6]} 23. Rbd1 {[%clk
0:00:17.2]} 23... g6 {[%clk 0:00:51]} 24. Rd8+ {[%clk 0:00:17]} 24... Kg7 {[%clk
0:00:51.6]} 25. g3 {[%clk 0:00:15.1]} 25... Qa5 {[%clk 0:00:48.8]} 26. Rxe4
{[%clk 0:00:14.4]} 26... Rc1+ {[%clk 0:00:41.6]} 27. Rd1 {[%clk 0:00:12.7]}
27... Rxd1+ {[%clk 0:00:39.2]} 28. Bxd1 {[%clk 0:00:13.6]} 28... Qxa2 {[%clk
0:00:39.3]} 29. Bf3 {[%clk 0:00:10.2]} 29... Qb1+ {[%clk 0:00:35.6]} 30. Kg2
{[%clk 0:00:10.6]} 30... a5 {[%clk 0:00:33.7]} 31. Ra4 {[%clk 0:00:08.9]} 31...
b6 {[%clk 0:00:32.3]} 32. h4 {[%clk 0:00:07.3]} 32... h5 {[%clk 0:00:31.8]} 33.
Rc4 {[%clk 0:00:05.3]} 33... b5 {[%clk 0:00:29.8]} 34. Rc7 {[%clk 0:00:06.2]}
34... a4 {[%clk 0:00:25.3]} 35. Bc6 {[%clk 0:00:06.2]} 35... Qc2 {[%clk
0:00:23.4]} 36. Rc8 {[%clk 0:00:06.2]} 36... a3 {[%clk 0:00:21.6]} 37. Bd7
{[%clk 0:00:06.7]} 37... Qxc8 {[%clk 0:00:19.5]} 38. Bxc8 {[%clk 0:00:06]} 38...
a2 {[%clk 0:00:20.2]} 39. Bd7 {[%clk 0:00:06.9]} 39... b4 {[%clk 0:00:19.2]} 40.
Bb5 {[%clk 0:00:07.8]} 40... a1=Q {[%clk 0:00:19.4]} 41. Bc4 {[%clk 0:00:08.4]}
41... Qc3 {[%clk 0:00:19.2]} 42. Be2 {[%clk 0:00:09.3]} 42... b3 {[%clk
0:00:19.5]} 43. Bf3 {[%clk 0:00:10.2]} 43... b2 {[%clk 0:00:19.9]} 44. g4 {[%clk
0:00:10.8]} 44... hxg4 {[%clk 0:00:19.7]} 45. Bxg4 {[%clk 0:00:11.6]} 45... b1=Q
{[%clk 0:00:19.1]} 46. Bf3 {[%clk 0:00:12.5]} 46... Qf5 {[%clk 0:00:18.7]} 47.
Kg3 {[%clk 0:00:13.4]} 47... Qfxf3+ {[%clk 0:00:18.1]} 48. Kh2 {[%clk
0:00:13.5]} 48... Qh3+ {[%clk 0:00:16.5]} 49. Kg1 {[%clk 0:00:13.9]} 49... Qcf3
{[%clk 0:00:16.4]} 50. h5 {[%clk 0:00:09.1]} 50... Kf6 {[%clk 0:00:09.6]} 51. h6
{[%clk 0:00:10]} 51... Qfg4# {[%clk 0:00:05.9]} 0-1

[Event "Late-Titled-Tuesday-Blitz-January-16-2024"]
[Site "Chess.com"]
[Date "2024.01.16"]
[Round "4"]
[White "pr1105"]
[Black "djano"]
[Result "0-1"]
[WhiteElo "2276"]
[BlackElo "2643"]
[TimeControl "180+1"]
[EndTime "14:38:17 PST"]
[Termination "djano won by checkmate"]

1. e4 {[%clk 0:02:49.3]} 1... c5 {[%clk 0:03:00]} 2. Nf3 {[%clk 0:02:48.3]} 2...
Nc6 {[%clk 0:03:00.3]} 3. Bb5 {[%clk 0:02:48]} 3... e5 {[%clk 0:03:00.2]} 4. O-O
{[%clk 0:02:45]} 4... Nge7 {[%clk 0:03:00.1]} 5. Re1 {[%clk 0:02:45]} 5... g6
{[%clk 0:02:59.1]} 6. c3 {[%clk 0:02:43.4]} 6... Bg7 {[%clk 0:02:59.3]} 7. h3
{[%clk 0:02:42.3]} 7... O-O {[%clk 0:02:58.6]} 8. a4 {[%clk 0:02:42.6]} 8... d6
{[%clk 0:02:55.6]} 9. d4 {[%clk 0:02:37.1]} 9... cxd4 {[%clk 0:02:55.1]} 10.
cxd4 {[%clk 0:02:37.5]} 10... Nxd4 {[%clk 0:02:52.1]} 11. Nxd4 {[%clk
0:02:37.2]} 11... exd4 {[%clk 0:02:53]} 12. Bg5 {[%clk 0:02:25.7]} 12... h6
{[%clk 0:02:52.1]} 13. Bh4 {[%clk 0:02:26]} 13... Be6 {[%clk 0:02:34.4]} 14. Nd2
{[%clk 0:02:26.1]} 14... a6 {[%clk 0:02:33.2]} 15. Bd3 {[%clk 0:02:18.9]} 15...
Qd7 {[%clk 0:02:32.8]} 16. Bg3 {[%clk 0:02:15.7]} 16... Rac8 {[%clk 0:02:22.9]}
17. Nf3 {[%clk 0:02:13.8]} 17... Nc6 {[%clk 0:02:19.6]} 18. Qd2 {[%clk
0:02:06.7]} 18... d5 {[%clk 0:02:00.4]} 19. e5 {[%clk 0:02:01.1]} 19... Rfe8
{[%clk 0:01:43.9]} 20. Rad1 {[%clk 0:01:54.4]} 20... Qc7 {[%clk 0:01:39]} 21.
Bb1 {[%clk 0:01:39.7]} 21... Bf8 {[%clk 0:01:31.8]} 22. Qf4 {[%clk 0:01:13.3]}
22... Bg7 {[%clk 0:01:11.2]} 23. h4 {[%clk 0:00:47]} 23... Qe7 {[%clk
0:01:07.6]} 24. Nxd4 {[%clk 0:00:42.7]} 24... Nxd4 {[%clk 0:01:01.9]} 25. Qxd4
{[%clk 0:00:43.3]} 25... Rc4 {[%clk 0:01:00.7]} 26. Qd2 {[%clk 0:00:31.1]} 26...
Rxa4 {[%clk 0:00:55.3]} 27. b3 {[%clk 0:00:29.4]} 27... Rg4 {[%clk 0:00:52.2]}
28. Bd3 {[%clk 0:00:26.5]} 28... Qb4 {[%clk 0:00:50.8]} 29. Qb2 {[%clk
0:00:20.6]} 29... Rc8 {[%clk 0:00:44.4]} 30. Be2 {[%clk 0:00:20.8]} 30... Rxg3
{[%clk 0:00:41.5]} 31. fxg3 {[%clk 0:00:21.7]} 31... Rc3 {[%clk 0:00:36.3]} 32.
Bf3 {[%clk 0:00:20.4]} 32... Rxb3 {[%clk 0:00:34.9]} 33. Qc2 {[%clk 0:00:18.3]}
33... Rc3 {[%clk 0:00:35.2]} 34. Qd2 {[%clk 0:00:18.1]} 34... d4 {[%clk
0:00:34.2]} 35. Qxd4 {[%clk 0:00:17.2]} 35... Rc4 {[%clk 0:00:31.5]} 36. Qd8+
{[%clk 0:00:14.5]} 36... Kh7 {[%clk 0:00:31.9]} 37. Rb1 {[%clk 0:00:15]} 37...
Qc5+ {[%clk 0:00:31.6]} 38. Kh2 {[%clk 0:00:15]} 38... b5 {[%clk 0:00:29.7]} 39.
Qd6 {[%clk 0:00:14.8]} 39... Qf2 {[%clk 0:00:24.3]} 40. Re2 {[%clk 0:00:13.5]}
40... Qa7 {[%clk 0:00:23.5]} 41. Ra2 {[%clk 0:00:12.5]} 41... Rd4 {[%clk
0:00:20.2]} 42. Qxa6 {[%clk 0:00:12]} 42... Qc7 {[%clk 0:00:19.8]} 43. Re2
{[%clk 0:00:10.3]} 43... Bxe5 {[%clk 0:00:19]} 44. Qxb5 {[%clk 0:00:10.6]} 44...
Bxg3+ {[%clk 0:00:18.8]} 45. Kh1 {[%clk 0:00:11.3]} 45... Qf4 {[%clk 0:00:16.6]}
46. Kg1 {[%clk 0:00:07.4]} 46... Qxh4 {[%clk 0:00:16.2]} 47. Re4 {[%clk
0:00:03.8]} 47... Rxe4 {[%clk 0:00:12.6]} 48. Bxe4 {[%clk 0:00:04.4]} 48... Qxe4
{[%clk 0:00:12.2]} 49. Qf1 {[%clk 0:00:04.6]} 49... Qd4+ {[%clk 0:00:11.5]} 50.
Kh1 {[%clk 0:00:04.6]} 50... Qh4+ {[%clk 0:00:12.1]} 51. Kg1 {[%clk 0:00:05.3]}
51... Qh2# {[%clk 0:00:12.8]} 0-1

[Event "Late-Titled-Tuesday-Blitz-January-16-2024"]
[Site "Chess.com"]
[Date "2024.01.16"]
[Round "4"]
[White "Emp3rador"]
[Black "Grischuk"]
[Result "0-1"]
[WhiteElo "2623"]
[BlackElo "3074"]
[TimeControl "180+1"]
[EndTime "14:38:21 PST"]
[Termination "Grischuk won by resignation"]

1. e4 {[%clk 0:03:00.9]} 1... e5 {[%clk 0:02:59.9]} 2. Nf3 {[%clk 0:03:00.7]}
2... Nc6 {[%clk 0:03:00.4]} 3. d4 {[%clk 0:03:00.4]} 3... exd4 {[%clk
0:03:00.5]} 4. Nxd4 {[%clk 0:03:01.3]} 4... Qf6 {[%clk 0:03:00.6]} 5. Be3 {[%clk
0:02:44.7]} 5... Bc5 {[%clk 0:02:58.6]} 6. c3 {[%clk 0:02:44.5]} 6... Nge7
{[%clk 0:02:57.7]} 7. Bc4 {[%clk 0:02:43.7]} 7... b6 {[%clk 0:02:57.2]} 8. O-O
{[%clk 0:02:40.6]} 8... Bb7 {[%clk 0:02:56.8]} 9. Qf3 {[%clk 0:02:14.9]} 9...
Qxf3 {[%clk 0:02:44.3]} 10. gxf3 {[%clk 0:02:14.5]} 10... Bxd4 {[%clk
0:01:40.3]} 11. cxd4 {[%clk 0:01:56.1]} 11... d5 {[%clk 0:01:40.5]} 12. Bb5
{[%clk 0:01:54.7]} 12... O-O-O {[%clk 0:01:39.3]} 13. e5 {[%clk 0:01:45.8]}
13... Nf5 {[%clk 0:01:35.6]} 14. Rd1 {[%clk 0:01:24.4]} 14... Nb4 {[%clk
0:01:35.2]} 15. Ba4 {[%clk 0:01:19.4]} 15... c5 {[%clk 0:01:17.4]} 16. Nc3
{[%clk 0:00:49.9]} 16... c4 {[%clk 0:01:05.4]} 17. a3 {[%clk 0:00:45.1]} 17...
Nd3 {[%clk 0:01:05.3]} 18. Rab1 {[%clk 0:00:43.9]} 18... Kb8 {[%clk 0:00:48.6]}
19. Bc2 {[%clk 0:00:39.5]} 19... Nh4 {[%clk 0:00:48]} 20. f4 {[%clk 0:00:22.7]}
20... Bc8 {[%clk 0:00:47.4]} 21. Nb5 {[%clk 0:00:06.2]} 21... Bg4 {[%clk
0:00:44.2]} 22. Rxd3 {[%clk 0:00:03.1]} 22... cxd3 {[%clk 0:00:43.7]} 23. Bxd3
{[%clk 0:00:04]} 23... Bf5 {[%clk 0:00:44.1]} 24. Rd1 {[%clk 0:00:01.9]} 24...
Bxd3 {[%clk 0:00:44.1]} 25. Rxd3 {[%clk 0:00:02.8]} 25... Nf5 {[%clk 0:00:44.8]}
26. Nc3 {[%clk 0:00:03.1]} 26... Rd7 {[%clk 0:00:44.2]} 27. Kg2 {[%clk
0:00:03.6]} 27... Kb7 {[%clk 0:00:44.5]} 28. Kf3 {[%clk 0:00:04.3]} 28... h5
{[%clk 0:00:43.8]} 29. Bd2 {[%clk 0:00:03.5]} 29... Rc8 {[%clk 0:00:43.3]} 30.
Be3 {[%clk 0:00:04]} 30... g6 {[%clk 0:00:40.1]} 31. h3 {[%clk 0:00:04.4]} 31...
Rc4 {[%clk 0:00:38.5]} 32. Ke2 {[%clk 0:00:04.3]} 32... a6 {[%clk 0:00:36.2]}
33. Kd2 {[%clk 0:00:04.9]} 33... b5 {[%clk 0:00:35.1]} 34. Ke2 {[%clk
0:00:04.8]} 34... Kb6 {[%clk 0:00:32.9]} 35. Kd2 {[%clk 0:00:05.1]} 35... a5
{[%clk 0:00:32.8]} 36. b3 {[%clk 0:00:04.9]} 36... Rc8 {[%clk 0:00:32.4]} 37. a4
{[%clk 0:00:04.9]} 37... b4 {[%clk 0:00:29.7]} 38. Nb5 {[%clk 0:00:05]} 38...
Rc6 {[%clk 0:00:29.7]} 39. Kd1 {[%clk 0:00:04.7]} 39... Rd8 {[%clk 0:00:29.6]}
40. Rd2 {[%clk 0:00:05.1]} 40... Rdc8 {[%clk 0:00:30.2]} 41. Ke2 {[%clk
0:00:05.6]} 41... Rc2 {[%clk 0:00:29.4]} 42. Kd3 {[%clk 0:00:05.4]} 42... Rxd2+
{[%clk 0:00:27.3]} 43. Kxd2 {[%clk 0:00:06.3]} 43... Rb8 {[%clk 0:00:22.9]} 44.
Kd3 {[%clk 0:00:05.6]} 44... Rb7 {[%clk 0:00:23.1]} 45. Bd2 {[%clk 0:00:05.7]}
45... Kc6 {[%clk 0:00:23.5]} 46. Be1 {[%clk 0:00:04.3]} 46... Rxb5 {[%clk
0:00:22.9]} 47. axb5+ {[%clk 0:00:04.9]} 47... Kxb5 {[%clk 0:00:23.8]} 48. Bd2
{[%clk 0:00:05.4]} 48... a4 {[%clk 0:00:23]} 49. bxa4+ {[%clk 0:00:05]} 49...
Kxa4 {[%clk 0:00:23.9]} 50. Bc1 {[%clk 0:00:04.4]} 50... Kb3 {[%clk 0:00:22.3]}
51. Bd2 {[%clk 0:00:04.5]} 51... Ka3 {[%clk 0:00:22.8]} 52. Bc1+ {[%clk
0:00:04.9]} 52... Ka2 {[%clk 0:00:22.8]} 53. Kc2 {[%clk 0:00:04.8]} 53... Nxd4+
{[%clk 0:00:22.2]} 0-1